fUSD/lending_fUSD_20240222
["ID","MTS","AMOUNT","RATE_DAILY","PERIOD"]
[314893907,1708625462997,-163.954301,0.00032877,7]
[314893908,1708625463008,-163.954301,0.00032877,7]
[314893909,1708625463018,-151.0,0.00032877,2]
[314893910,1708625463028,-151.0,0.00032877,2]
[314893911,1708625463043,-151.0,0.00032877,7]
[314893912,1708625463061,-151.0,0.00032877,7]
[314893913,1708625463070,-151.0,0.00032877,2]
[314893914,1708625463080,-151.0,0.00032877,2]
[314893915,1708625463090,-4986.223576,0.00032877,7]
[314893916,1708625463099,-4986.223576,0.00032877,7]
[314893917,1708625463108,-316.339277,0.00032877,7]
[314893918,1708625463117,-316.339277,0.00032877,7]
[314893919,1708625463127,-4986.223576,0.00032877,7]
[314893920,1708625463136,-4986.223576,0.00032877,7]
[314893921,1708625463146,-316.339277,0.00032877,7]
[314893922,1708625463156,-316.339277,0.00032877,7]
[314893923,1708625463165,-151.0,0.00032877,7]
[314893924,1708625463174,-213.804686,0.00032877,7]
[314893925,1708625463184,-151.0,0.00032877,7]
[314893926,1708625463194,-151.0,0.00032877,7]
[314893927,1708625463203,-151.0,0.00032877,7]
[314893928,1708625463213,-193.930987,0.00032877,7]
[314893929,1708625463222,-151.0,0.00032877,7]
[314893930,1708625463231,-151.0,0.00032877,7]
[314893931,1708625463241,-1242.959557,0.00032877,7]
[314893932,1708625463250,-1242.959557,0.00032877,7]
[314893933,1708625463259,-1242.959557,0.00032877,7]
[314893934,1708625463268,-1242.959557,0.00032877,7]
[314893935,1708625463280,-151.0,0.00032877,7]
[314893936,1708625463289,-151.0,0.00032877,7]
[314893937,1708625463298,-151.0,0.00032877,7]
[314893938,1708625463307,-151.0,0.00032877,7]
[314893939,1708625463317,-151.0,0.00032877,7]
[314893940,1708625463326,-151.0,0.00032877,7]
[314893941,1708625463336,-1371.815247,0.00032877,7]
[314893942,1708625463345,-1371.815247,0.00032877,7]
[314893943,1708625463355,-1371.815247,0.00032877,7]
[314893944,1708625463364,-292.793432,0.00032877,7]
[314893945,1708625463375,-1371.815247,0.00032877,7]
[314893946,1708625463385,-151.0,0.00032877,7]
[314893947,1708625463398,-151.0,0.00032877,7]
[314893948,1708625463408,-296.963224,0.00032877,7]
[314893949,1708625463417,-296.963224,0.00032877,7]
[314893950,1708625463427,-296.963224,0.00032877,7]
[314893951,1708625463437,-296.963224,0.00032877,7]
[314893952,1708625463446,-411.757149,0.00032877,7]
[314893953,1708625463456,-411.757149,0.00032877,7]
[314893954,1708625463465,-647.141138,0.00032877,7]
[314893955,1708625463476,-647.141138,0.00032877,7]
[314893956,1708625463485,-411.757149,0.00032877,7]
[314893957,1708625463494,-411.757149,0.00032877,7]
[314893958,1708625463503,-647.141138,0.00032877,7]
[314893959,1708625463513,-647.141138,0.00032877,7]
[314893960,1708625463522,-266.013848,0.00032877,7]
[314893961,1708625463531,-266.013848,0.00032877,7]
[314893962,1708625463541,-266.013848,0.00032877,7]
[314893963,1708625463550,-266.013848,0.00032877,7]
[314893964,1708625463559,-151.0,0.00032877,7]
[314893965,1708625463569,-151.0,0.00032877,7]
[314893966,1708625463578,-649.169362,0.00032877,7]
[314893967,1708625463587,-649.169362,0.00032877,7]
[314893968,1708625463597,-649.169362,0.00032877,7]
[314893969,1708625463606,-649.169362,0.00032877,7]
[314893970,1708625463615,-192.527771,0.00032877,7]
[314893971,1708625463625,-192.527771,0.00032877,7]
[314893972,1708625463634,-192.527771,0.00032877,7]
[314893973,1708625463643,-192.527771,0.00032877,7]
[314893974,1708625463654,-310.972495,0.00032877,7]
[314893975,1708625463663,-310.972495,0.00032877,7]
[314893976,1708625463672,-310.972495,0.00032877,7]
[314893977,1708625463682,-2303.413771,0.00032877,7]
[314893978,1708625463767,-2303.413771,0.00032877,7]
[314893979,1708625463777,-310.972495,0.00032877,7]
[314893980,1708625463787,-2303.413771,0.00032877,7]
[314893981,1708625463795,-2303.413771,0.00032877,7]
[314893982,1708625463805,-187.799838,0.00032877,7]
[314893983,1708625463814,-187.799838,0.00032877,7]
[314893984,1708625463823,-150.0,0.00032877,30]
[314893985,1708625463833,-423.57,0.00032877,2]
[314893986,1708625463843,-331.65,0.00032877,2]
[314893987,1708625463853,-383.19,0.00032877,2]
[314893988,1708625463867,-239111.1548148,0.00032877,2]
[314893989,1708625463878,-2597.011907,0.00032877,2]
[314893990,1708625463889,-9868.322798,0.00032877,2]
[314893991,1708625463899,-55300.2814439,0.00032877,2]
[314893992,1708625463910,-1565.14914372,0.000329,2]
[314893993,1708625463921,-152.0,0.00032925,4]
[314893994,1708625463931,-300.0,0.00032962,2]
[314893995,1708625463942,-500.0,0.00032972,2]
[314893996,1708625463952,-500.0,0.00032972,2]
[314893997,1708625463963,-500.0,0.00032972,2]
[314893998,1708625463972,-500.0,0.00032972,2]
[314893999,1708625463981,-500.0,0.00032972,2]
[314894000,1708625463991,-500.0,0.00032972,2]
[314894001,1708625464000,-551.95,0.00032972,2]
[314894002,1708625464010,-500.0,0.00032972,2]
[314894003,1708625464019,-500.0,0.00032972,2]
[314894004,1708625464029,-500.0,0.00032972,2]
[314894005,1708625464039,-387.21,0.00032972,2]
[314894006,1708625464048,-500.0,0.00032972,2]
[314894007,1708625464057,-150.0,0.00032995,2]
[314894008,1708625464067,-60587.94226487,0.00033,2]
[314894009,1708625464076,-609.0,0.00033,3]
[314894010,1708625464088,-1000.0,0.00033,3]
[314894011,1708625464098,-1585.9209627,0.00033,2]
[314894012,1708625464107,-151.0,0.00033,7]
[314894013,1708625464116,-151.0,0.00033,7]
[314894014,1708625464126,-272.50385,0.00033,7]
[314894015,1708625464135,-151.0,0.00033,7]
[314894016,1708625464144,-151.0,0.00033,7]
[314894017,1708625464156,-182.999342,0.00033,7]
[314894018,1708625464166,-1614.812565,0.00033,7]
[314894019,1708625464176,-151.0,0.00033,7]
[314894020,1708625464185,-1614.812565,0.00033,7]
[314894021,1708625464196,-182.999342,0.00033,7]
[314894022,1708625464205,-151.0,0.00033,7]
[314894023,1708625464215,-151.0,0.00033,7]
[314894024,1708625464226,-163.954301,0.00033,7]
[314894025,1708625464236,-163.954301,0.00033,7]
[314894026,1708625464246,-151.0,0.00033,2]
[314894027,1708625464256,-151.0,0.00033,2]
[314894028,1708625464267,-151.0,0.00033,7]
[314894029,1708625464277,-1242.959557,0.00033,7]
[314894030,1708625464287,-1242.959557,0.00033,7]
[314894031,1708625464297,-151.0,0.00033,7]
[314894032,1708625464307,-151.0,0.00033,7]
[314894033,1708625464317,-151.0,0.00033,7]
[314894034,1708625464326,-1371.815247,0.00033,7]
[314894035,1708625464337,-1371.815247,0.00033,7]
[314894036,1708625464346,-151.0,0.00033,7]
[314894037,1708625464356,-296.963224,0.00033,7]
[314894038,1708625464366,-296.963224,0.00033,7]
[314894039,1708625464375,-411.757149,0.00033,7]
[314894040,1708625464384,-411.757149,0.00033,7]
[314894041,1708625464394,-647.141138,0.00033,7]
[314894042,1708625464412,-647.141138,0.00033,7]
[314894043,1708625464421,-266.013848,0.00033,7]
[314894044,1708625464431,-266.013848,0.00033,7]
[314894045,1708625464441,-151.0,0.00033,7]
[314894046,1708625464450,-649.169362,0.00033,7]
[314894047,1708625464460,-649.169362,0.00033,7]
[314894048,1708625464469,-192.527771,0.00033,7]
[314894049,1708625464479,-192.527771,0.00033,7]
[314894050,1708625464489,-336.79118655,0.00033012,2]
[314894051,1708625464499,-153.11,0.00033013,4]
[314894052,1708625464508,-522.0882416,0.00033013,4]
[314894053,1708625464518,-350.8602775,0.00033013,4]
[314894054,1708625464527,-512.69542832,0.00033013,4]
[314894055,1708625464536,-219.12437184,0.00033013,4]
[314894056,1708625464545,-550.240533,0.00033013,4]
[314894057,1708625464554,-392.21588987,0.00033013,4]
[314894058,1708625464564,-500.0,0.00033013,4]
[314894059,1708625464572,-519.34913243,0.00033013,4]
[314894060,1708625464582,-500.0,0.00033013,4]
[314894061,1708625464592,-500.0,0.00033013,4]
[314894062,1708625464601,-500.0,0.00033013,4]
[314894063,1708625464610,-387.52009432,0.00033013,4]
[314894064,1708625464620,-500.0,0.00033013,4]
[314894065,1708625464629,-500.0,0.00033013,4]
[314894066,1708625464638,-500.0,0.00033013,4]
[314894067,1708625464646,-432.92666658,0.00033013,4]
[314894068,1708625464658,-500.0,0.00033013,4]
[314894069,1708625464667,-538.28873341,0.00033013,4]
[314894070,1708625464677,-500.0,0.00033013,4]
[314894071,1708625464686,-512.6552534,0.00033013,4]
[314894072,1708625464695,-500.0,0.00033013,4]
[314894073,1708625464705,-500.0,0.00033013,4]
[314894074,1708625464714,-500.0,0.00033013,4]
[314894075,1708625464723,-500.0,0.00033013,4]
[314894076,1708625464733,-500.0,0.00033013,4]
[314894077,1708625464743,-500.0,0.00033013,4]
[314894078,1708625464752,-500.0,0.00033013,4]
[314894079,1708625464761,-500.0,0.00033013,4]
[314894080,1708625464771,-500.0,0.00033013,4]
[314894081,1708625464780,-500.0,0.00033013,4]
[314894082,1708625464789,-500.0,0.00033013,4]
[314894083,1708625464798,-500.0,0.00033013,4]
[314894084,1708625464807,-500.0,0.00033013,4]
[314894085,1708625464817,-500.0,0.00033013,4]
[314894086,1708625464827,-171.476607,0.00033013,7]
[314894087,1708625464836,-500.0,0.00033013,4]
[314894088,1708625464845,-500.0,0.00033013,4]
[314894089,1708625464854,-500.0,0.00033013,4]
[314894090,1708625464864,-500.0,0.00033013,4]
[314894091,1708625464875,-500.0,0.00033013,4]
[314894092,1708625464884,-500.0,0.00033013,4]
[314894093,1708625464893,-500.0,0.00033013,2]
[314894094,1708625464906,-500.0,0.00033013,4]
[314894095,1708625464915,-151.0,0.00033013,7]
[314894096,1708625464924,-321.21370928,0.00033013,4]
[314894097,1708625464933,-500.0,0.00033013,4]
[314894098,1708625464942,-500.0,0.00033013,4]
[314894099,1708625464951,-193.95261787,0.00033013,4]
[314894100,1708625464960,-514.99,0.00033013,4]
[314894101,1708625464970,-500.0,0.00033013,4]
[314894102,1708625464979,-500.0,0.00033013,4]
[314894103,1708625464988,-555.79,0.00033013,4]
[314894104,1708625464997,-288.75743034,0.00033013,4]
[314894105,1708625465007,-500.0,0.00033013,4]
[314894106,1708625465016,-500.0,0.00033013,4]
[314894107,1708625465026,-500.0,0.00033013,4]
[314894108,1708625465035,-515.50209522,0.00033013,4]
[314894109,1708625465045,-500.0,0.00033013,4]
[314894110,1708625465055,-151.0,0.00033013,7]
[314894111,1708625465065,-641.75,0.00033013,4]
[314894112,1708625465075,-500.0,0.00033013,4]
[314894113,1708625465086,-500.0,0.00033013,4]
[314894114,1708625465096,-533.5616728,0.00033013,4]
[314894115,1708625465105,-300.354717,0.00033013,7]
[314894116,1708625465115,-500.0,0.00033013,4]
[314894117,1708625465124,-222.88979337,0.00033013,4]
[314894118,1708625465134,-750.74,0.00033013,4]
[314894119,1708625465143,-500.0,0.00033013,4]
[314894120,1708625465155,-151.0,0.00033013,7]
[314894121,1708625465165,-500.0,0.00033013,4]
[314894122,1708625465174,-508.37061218,0.00033013,4]
[314894123,1708625465183,-500.0,0.00033013,4]
[314894124,1708625465193,-500.0,0.00033013,4]
[314894125,1708625465202,-500.0,0.00033013,4]
[314894126,1708625465211,-500.0,0.00033013,4]
[314894127,1708625465221,-500.0,0.00033013,4]
[314894128,1708625465230,-500.0,0.00033013,4]
[314894129,1708625465240,-500.0,0.00033013,4]
[314894130,1708625465249,-500.0,0.00033013,4]
[314894131,1708625465258,-542.31,0.00033013,4]
[314894132,1708625465267,-500.0,0.00033013,4]
[314894133,1708625465276,-294.25479536,0.00033013,4]
[314894134,1708625465286,-500.0,0.00033013,4]
[314894135,1708625465296,-621.21,0.00033013,4]
[314894136,1708625465305,-500.0,0.00033013,4]
[314894137,1708625465314,-307.62166054,0.00033013,4]
[314894138,1708625465323,-525.44933217,0.00033013,4]
[314894139,1708625465333,-500.0,0.00033013,4]
[314894140,1708625465342,-252.99940393,0.00033013,4]
[314894141,1708625465351,-500.0,0.00033013,4]
[314894142,1708625465361,-506.07393251,0.00033013,4]
[314894143,1708625465370,-500.0,0.00033013,4]
[314894144,1708625465379,-231.46,0.00033013,7]
[314894145,1708625465390,-250.0,0.00033013,4]
[314894146,1708625465400,-231.46,0.00033013,7]
[314894147,1708625465410,-500.0,0.00033013,4]
[314894148,1708625465420,-551.07,0.00033013,4]
[314894149,1708625465429,-500.0,0.00033013,4]
[314894150,1708625465439,-500.0,0.00033013,4]
[314894151,1708625465449,-744.09,0.00033013,4]
[314894152,1708625465458,-151.0,0.00033013,7]
[314894153,1708625465468,-500.0,0.00033013,4]
[314894154,1708625465477,-500.0,0.00033013,4]
[314894155,1708625465486,-537.40184591,0.00033013,4]
[314894156,1708625465496,-500.0,0.00033013,4]
[314894157,1708625465505,-500.0,0.00033013,4]
[314894158,1708625465515,-589.90562138,0.00033013,4]
[314894159,1708625465524,-151.0,0.00033013,7]
[314894160,1708625465533,-500.0,0.00033013,4]
[314894161,1708625465543,-500.0,0.00033013,4]
[314894162,1708625465552,-500.0,0.00033013,4]
[314894163,1708625465562,-500.0,0.00033013,4]
[314894164,1708625465571,-500.0,0.00033013,4]
[314894165,1708625465580,-500.0,0.00033013,4]
[314894166,1708625465590,-500.0,0.00033013,4]
[314894167,1708625465599,-500.0,0.00033013,4]
[314894168,1708625465610,-151.0,0.00033013,7]
[314894169,1708625465620,-573.53,0.00033013,4]
[314894170,1708625465629,-500.0,0.00033013,4]
[314894171,1708625465639,-594.16407712,0.00033013,4]
[314894172,1708625465649,-500.0,0.00033013,4]
[314894173,1708625465659,-151.0,0.00033013,7]
[314894174,1708625465669,-500.0,0.00033013,4]
[314894175,1708625465679,-500.0,0.00033013,4]
[314894176,1708625465688,-500.0,0.00033013,4]
[314894177,1708625465698,-500.0,0.00033013,4]
[314894178,1708625465707,-500.0,0.00033013,4]
[314894179,1708625465716,-555.71169126,0.00033013,4]
[314894180,1708625465726,-500.0,0.00033013,4]
[314894181,1708625465735,-500.0,0.00033013,4]
[314894182,1708625465744,-500.0,0.00033013,4]
[314894183,1708625465754,-500.0,0.00033013,4]
[314894184,1708625465763,-500.0,0.00033013,4]
[314894185,1708625465773,-500.0,0.00033013,4]
[314894186,1708625465782,-1000.0,0.00033013,7]
[314894187,1708625465791,-257.76472445,0.00033013,4]
[314894188,1708625465801,-500.0,0.00033013,4]
[314894189,1708625465810,-608.9618344,0.00033013,4]
[314894190,1708625465819,-500.0,0.00033013,4]
[314894191,1708625465829,-500.0,0.00033013,4]
[314894192,1708625465838,-223.2046013,0.00033013,4]
[314894193,1708625465848,-500.0,0.00033013,4]
[314894194,1708625465857,-500.0,0.00033013,4]
[314894195,1708625465869,-524.07,0.00033013,4]
[314894196,1708625465878,-613.13907358,0.00033013,4]
[314894197,1708625465888,-500.0,0.00033013,4]
[314894198,1708625465897,-605.68107119,0.00033013,4]
[314894199,1708625465907,-151.0,0.00033013,7]
[314894200,1708625465917,-500.0,0.00033013,4]
[314894201,1708625465926,-500.0,0.00033013,4]
[314894202,1708625465935,-223.5005991,0.00033013,4]
[314894203,1708625465946,-500.0,0.00033013,4]
[314894204,1708625465957,-500.0,0.00033013,4]
[314894205,1708625465966,-951.85,0.00033013,4]
[314894206,1708625465975,-500.0,0.00033013,4]
[314894207,1708625465984,-500.0,0.00033013,4]
[314894208,1708625465993,-926.28,0.00033013,4]
[314894209,1708625466003,-500.0,0.00033013,4]
[314894210,1708625466012,-744.11,0.00033013,4]
[314894211,1708625466022,-529.22,0.00033013,4]
[314894212,1708625466031,-500.0,0.00033013,4]
[314894213,1708625466042,-500.0,0.00033013,4]
[314894214,1708625466051,-500.0,0.00033013,4]
[314894215,1708625466060,-500.0,0.00033013,4]
[314894216,1708625466069,-500.0,0.00033013,4]
[314894217,1708625466078,-500.0,0.00033013,4]
[314894218,1708625466088,-1143.73,0.00033013,4]
[314894219,1708625466097,-500.0,0.00033013,4]
[314894220,1708625466106,-500.0,0.00033013,4]
[314894221,1708625466115,-500.0,0.00033013,4]
[314894222,1708625466124,-500.0,0.00033013,4]
[314894223,1708625466133,-500.0,0.00033013,4]
[314894224,1708625466142,-500.0,0.00033013,4]
[314894225,1708625466152,-151.0,0.00033013,3]
[314894226,1708625466161,-779.36,0.00033013,4]
[314894227,1708625466170,-500.0,0.00033013,4]
[314894228,1708625466179,-500.0,0.00033013,4]
[314894229,1708625466189,-500.0,0.00033013,4]
[314894230,1708625466198,-500.0,0.00033013,4]
[314894231,1708625466207,-635.41,0.00033013,4]
[314894232,1708625466217,-555.19,0.00033013,4]
[314894233,1708625466226,-500.0,0.00033013,4]
[314894234,1708625466236,-500.0,0.00033013,4]
[314894235,1708625466246,-500.0,0.00033013,4]
[314894236,1708625466256,-500.0,0.00033013,4]
[314894237,1708625466266,-500.0,0.00033013,4]
[314894238,1708625466275,-151.0,0.00033013,7]
[314894239,1708625466285,-500.0,0.00033013,4]
[314894240,1708625466294,-500.0,0.00033013,4]
[314894241,1708625466303,-317.17660466,0.00033013,2]
[314894242,1708625466313,-151.0,0.00033013,7]
[314894243,1708625466322,-500.0,0.00033013,4]
[314894244,1708625466332,-547.39378119,0.00033013,4]
[314894245,1708625466342,-500.0,0.00033013,4]
[314894246,1708625466352,-822.26,0.00033013,4]
[314894247,1708625466362,-769.66,0.00033013,4]
[314894248,1708625466372,-500.0,0.00033013,4]
[314894249,1708625466382,-500.0,0.00033013,4]
[314894250,1708625466393,-500.0,0.00033013,4]
[314894251,1708625466404,-500.0,0.00033013,4]
[314894252,1708625466413,-500.0,0.00033013,4]
[314894253,1708625466423,-500.0,0.00033013,4]
[314894254,1708625466433,-889.62,0.00033013,4]
[314894255,1708625466443,-634.08,0.00033013,4]
[314894256,1708625466453,-500.0,0.00033013,4]
[314894257,1708625466462,-500.0,0.00033013,4]
[314894258,1708625466471,-509.97240823,0.00033013,4]
[314894259,1708625466481,-567.01,0.00033013,4]
[314894260,1708625466491,-721.11,0.00033013,4]
[314894261,1708625466501,-500.0,0.00033013,4]
[314894262,1708625466510,-653.98,0.00033013,4]
[314894263,1708625466520,-659.59,0.00033013,4]
[314894264,1708625466530,-500.0,0.00033013,4]
[314894265,1708625466540,-500.0,0.00033013,4]
[314894266,1708625466549,-516.5399053,0.00033013,4]
[314894267,1708625466558,-500.0,0.00033013,4]
[314894268,1708625466568,-500.0,0.00033013,4]
[314894269,1708625466577,-500.0,0.00033013,4]
[314894270,1708625466587,-951.61,0.00033013,4]
[314894271,1708625466596,-627.93,0.00033013,4]
[314894272,1708625466607,-334.94459714,0.00033013,4]
[314894273,1708625466617,-500.0,0.00033013,4]
[314894274,1708625466627,-500.0,0.00033013,4]
[314894275,1708625466637,-481.651988,0.00033013,7]
[314894276,1708625466648,-1016.3,0.00033013,4]
[314894277,1708625466658,-500.0,0.00033013,4]
[314894278,1708625466668,-677.11,0.00033013,4]
[314894279,1708625466678,-500.0,0.00033013,4]
[314894280,1708625466687,-500.0,0.00033013,4]
[314894281,1708625466696,-746.18,0.00033013,4]
[314894282,1708625466706,-668.92,0.00033013,4]
[314894283,1708625466716,-500.0,0.00033013,4]
[314894284,1708625466725,-481.651988,0.00033013,7]
[314894285,1708625466735,-655.97,0.00033013,4]
[314894286,1708625466744,-500.0,0.00033013,4]
[314894287,1708625466753,-500.0,0.00033013,4]
[314894288,1708625466763,-944.62,0.00033013,4]
[314894289,1708625466772,-500.0,0.00033013,4]
[314894290,1708625466781,-500.0,0.00033013,4]
[314894291,1708625466791,-500.0,0.00033013,4]
[314894292,1708625466800,-500.0,0.00033013,4]
[314894293,1708625466810,-151.0,0.00033013,7]
[314894294,1708625466819,-151.0,0.00033013,7]
[314894295,1708625466828,-500.0,0.00033013,4]
[314894296,1708625466838,-804.18,0.00033013,4]
[314894297,1708625466848,-500.0,0.00033013,4]
[314894298,1708625466868,-535.66,0.00033013,4]
[314894299,1708625466879,-500.0,0.00033013,4]
[314894300,1708625466889,-500.0,0.00033013,4]
[314894301,1708625466899,-936.27,0.00033013,4]
[314894302,1708625466909,-500.0,0.00033013,4]
[314894303,1708625466919,-500.0,0.00033013,4]
[314894304,1708625466928,-500.0,0.00033013,4]
[314894305,1708625466938,-573.6,0.00033013,4]
[314894306,1708625466949,-500.0,0.00033013,4]
[314894307,1708625466959,-500.0,0.00033013,4]
[314894308,1708625466969,-507.93612907,0.00033013,4]
[314894309,1708625466979,-156.950667,0.00033013,7]
[314894310,1708625466988,-156.950667,0.00033013,7]
[314894311,1708625466997,-591.81314821,0.00033013,4]
[314894312,1708625467007,-500.0,0.00033013,4]
[314894313,1708625467016,-573.73,0.00033013,4]
[314894314,1708625467026,-500.0,0.00033013,4]
[314894315,1708625467036,-156.950667,0.00033013,7]
[314894316,1708625467045,-156.950667,0.00033013,7]
[314894317,1708625467054,-906.98,0.00033013,4]
[314894318,1708625467064,-625.48,0.00033013,4]
[314894319,1708625467074,-500.0,0.00033013,4]
[314894320,1708625467084,-500.0,0.00033013,4]
[314894321,1708625467093,-500.0,0.00033013,4]
[314894322,1708625467103,-619.25,0.00033013,4]
[314894323,1708625467112,-500.0,0.00033013,4]
[314894324,1708625467121,-500.0,0.00033013,4]
[314894325,1708625467131,-802.24,0.00033013,4]
[314894326,1708625467141,-500.0,0.00033013,4]
[314894327,1708625467150,-500.0,0.00033013,4]
[314894328,1708625467159,-500.0,0.00033013,4]
[314894329,1708625467169,-500.0,0.00033013,4]
[314894330,1708625467179,-553.85,0.00033013,4]
[314894331,1708625467188,-951.64,0.00033013,4]
[314894332,1708625467198,-204.09906693,0.00033013,4]
[314894333,1708625467207,-500.0,0.00033013,4]
[314894334,1708625467216,-500.0,0.00033013,4]
[314894335,1708625467225,-500.0,0.00033013,4]
[314894336,1708625467235,-509.73939909,0.00033013,4]
[314894337,1708625467244,-500.0,0.00033013,4]
[314894338,1708625467253,-694.67,0.00033013,4]
[314894339,1708625467263,-500.0,0.00033013,4]
[314894340,1708625467272,-991.06,0.00033013,4]
[314894341,1708625467282,-500.0,0.00033013,4]
[314894342,1708625467291,-500.0,0.00033013,4]
[314894343,1708625467301,-676.95,0.00033013,4]
[314894344,1708625467311,-500.0,0.00033013,4]
[314894345,1708625467321,-764.63,0.00033013,4]
[314894346,1708625467330,-500.0,0.00033013,4]
[314894347,1708625467340,-500.0,0.00033013,4]
[314894348,1708625467349,-508.78,0.00033013,4]
[314894349,1708625467358,-500.0,0.00033013,4]
[314894350,1708625467368,-500.0,0.00033013,2]
[314894351,1708625467377,-802.5,0.00033013,4]
[314894352,1708625467387,-664.95,0.00033013,4]
[314894353,1708625467399,-574.44925716,0.00033013,4]
[314894354,1708625467409,-500.0,0.00033013,4]
[314894355,1708625467419,-536.18548083,0.00033013,4]
[314894356,1708625467428,-500.0,0.00033013,4]
[314894357,1708625467437,-500.0,0.00033013,4]
[314894358,1708625467447,-500.0,0.00033013,4]
[314894359,1708625467456,-500.0,0.00033013,4]
[314894360,1708625467466,-630.97647665,0.00033013,4]
[314894361,1708625467476,-500.0,0.00033013,4]
[314894362,1708625467485,-500.0,0.00033013,4]
[314894363,1708625467494,-500.0,0.00033013,4]
[314894364,1708625467504,-632.57,0.00033013,4]
[314894365,1708625467513,-692.13,0.00033013,4]
[314894366,1708625467523,-509.92,0.00033013,4]
[314894367,1708625467532,-500.0,0.00033013,4]
[314894368,1708625467541,-500.0,0.00033013,4]
[314894369,1708625467551,-500.0,0.00033013,4]
[314894370,1708625467560,-500.0,0.00033013,4]
[314894371,1708625467570,-607.02,0.00033013,4]
[314894372,1708625467579,-792.22,0.00033013,4]
[314894373,1708625467588,-500.0,0.00033013,4]
[314894374,1708625467598,-500.0,0.00033013,4]
[314894375,1708625467607,-1057.84,0.00033013,4]
[314894376,1708625467616,-500.0,0.00033013,4]
[314894377,1708625467626,-967.9,0.00033013,4]
[314894378,1708625467636,-1015.71,0.00033013,4]
[314894379,1708625467646,-500.0,0.00033013,4]
[314894380,1708625467656,-1057.91,0.00033013,4]
[314894381,1708625467665,-500.0,0.00033013,4]
[314894382,1708625467674,-500.0,0.00033013,4]
[314894383,1708625467684,-500.0,0.00033013,4]
[314894384,1708625467693,-500.0,0.00033013,4]
[314894385,1708625467703,-1562.84,0.00033013,4]
[314894386,1708625467712,-500.0,0.00033013,2]
[314894387,1708625467722,-500.0,0.00033013,4]
[314894388,1708625467731,-908.7,0.00033013,4]
[314894389,1708625467741,-574.22,0.00033013,4]
[314894390,1708625467750,-500.0,0.00033013,4]
[314894391,1708625467761,-500.0,0.00033013,4]
[314894392,1708625467771,-1195.95,0.00033013,4]
[314894393,1708625467781,-500.0,0.00033013,4]
[314894394,1708625467791,-500.0,0.00033013,4]
[314894395,1708625467800,-500.0,0.00033013,4]
[314894396,1708625467810,-151.0,0.00033013,7]
[314894397,1708625467819,-151.0,0.00033013,7]
[314894398,1708625467829,-500.0,0.00033013,4]
[314894399,1708625467838,-711.8,0.00033013,4]
[314894400,1708625467848,-526.76972106,0.00033013,4]
[314894401,1708625467859,-500.0,0.00033013,4]
[314894402,1708625467870,-643.93,0.00033013,4]
[314894403,1708625467879,-186.387352,0.00033013,7]
[314894404,1708625468039,-1000.0,0.00033013,7]
[314894405,1708625468053,-151.0,0.00033013,7]
[314894406,1708625468064,-151.0,0.00033013,7]